bitfinex/quotes_SOLUSD_20250831
["timestamp","ask_amount","ask_price","bid_price","bid_amount"]
[1756643779545,5.58521258,203.45,203.44,0.03]
[1756643782769,19.18080659,203.45,203.44,0.03]
[1756643783159,39.59559401,203.43,203.42,0.03]
[1756643783351,18.51128982,203.43,203.42,0.03]
[1756643783557,19.18128982,203.43,203.42,0.03]
[1756643783855,13.59559401,203.42,203.41,0.03]
[1756643784063,13.59559401,203.42,203.41,1e-08]
[1756643784259,14.26559401,203.42,203.41,1e-08]
[1756643784464,26.0,203.4,203.39,1e-08]
[1756643784883,26.67,203.4,203.39,1e-08]
[1756643785254,63.54489392,203.4,203.39,1e-08]
[1756643785470,68.4569511,203.4,203.39,1e-08]
[1756643787279,107.0369511,203.4,203.39,1e-08]
[1756643787473,103.76201485,203.4,203.39,1e-08]
[1756643788265,83.76201485,203.4,203.39,1e-08]
[1756643789073,103.76201485,203.4,203.39,1e-08]
[1756643789680,83.76201485,203.4,203.39,1e-08]
[1756643790178,103.76201485,203.4,203.39,1e-08]
[1756643790566,103.80201485,203.4,203.39,1e-08]
[1756643791576,108.75180585,203.4,203.39,1e-08]
[1756643791956,70.13180585,203.4,203.39,1e-08]
[1756643792157,108.75180585,203.4,203.39,1e-08]
[1756643792474,57.80201485,203.4,203.39,1e-08]
[1756643795367,62.72155285,203.4,203.39,1e-08]
[1756643797886,18.57201485,203.4,203.39,1e-08]
[1756643798186,57.88201485,203.4,203.39,1e-08]
[1756643801681,57.19201485,203.4,203.39,1e-08]
[1756643804073,30.97642084,203.4,203.39,0.72000001]
[1756643804273,69.63642084,203.4,203.39,0.72000001]
[1756643804686,30.97642084,203.4,203.39,0.72000001]
[1756643804887,0.06,203.4,203.39,0.72000001]
[1756643805482,26.06,203.4,203.39,0.72000001]
[1756643805999,30.97642084,203.4,203.39,0.72000001]
[1756643807076,26.06,203.4,203.39,0.72000001]
[1756643808296,30.97642084,203.4,203.39,1e-08]
[1756643808597,4.97642084,203.4,203.39,1e-08]
[1756643809003,19.26201485,203.4,203.39,1e-08]
[1756643809580,18.57201485,203.4,203.39,1e-08]
[1756643810878,4.97642084,203.4,203.39,1e-08]
[1756643811204,4.97642084,203.4,203.39,0.72000001]
[1756643812573,57.98201485,203.4,203.39,1e-08]
[1756643813599,57.29201485,203.4,203.39,1e-08]
[1756643816103,0.06,203.4,203.39,1e-08]
[1756643816291,64.76,203.4,203.39,0.72000001]
[1756643817502,69.67642084,203.4,203.39,0.72000001]
[1756643818188,30.97642084,203.4,203.39,1e-08]
[1756643818499,4.97642084,203.4,203.39,1e-08]
[1756643818699,4.97642084,203.4,203.39,0.72000001]
[1756643819004,4.97642084,203.4,203.39,1e-08]
[1756643819205,4.97642084,203.4,203.39,0.72000001]
[1756643819393,4.97642084,203.4,203.39,1e-08]
[1756643822526,4.97642084,203.4,203.39,0.70000001]
[1756643822908,4.97642084,203.4,203.39,1e-08]
[1756643823404,4.97642084,203.4,203.39,0.70000001]
[1756643824510,4.97642084,203.4,203.39,1e-08]
[1756643824945,18.57201485,203.4,203.39,1e-08]
[1756643825145,19.28201485,203.4,203.39,1e-08]
[1756643826437,30.97642084,203.4,203.39,1e-08]
[1756643826636,69.65642084,203.4,203.39,0.70000001]
[1756643829958,30.97642084,203.4,203.39,0.70000001]
[1756643830149,69.65642084,203.4,203.39,0.70000001]
[1756643830350,30.97642084,203.4,203.39,0.70000001]
[1756643831158,30.97642084,203.4,203.39,1e-08]
[1756643831461,4.97642084,203.4,203.39,1e-08]
[1756643832040,4.97642084,203.4,203.39,0.70000001]
[1756643832260,0.06,203.4,203.39,0.70000001]
[1756643832748,26.06,203.4,203.39,0.70000001]
[1756643834462,30.97642084,203.4,203.39,0.70000001]
[1756643836562,26.06,203.4,203.39,0.70000001]
[1756643836768,30.97642084,203.4,203.39,0.70000001]
[1756643849873,0.06,203.4,203.39,0.70000001]
[1756643850054,0.00945838,203.4,203.39,0.70000001]
[1756643854684,0.06,203.43,203.39,0.70000001]
[1756643854685,0.06,203.43,203.39,19.21225658]
[1756643854866,0.06,203.43,203.39,18.51225658]
[1756643855070,0.06,203.43,203.4,0.72]
[1756643856480,0.06,203.43,203.4,5.63633964]
[1756643856864,0.06,203.43,203.41,0.72]
[1756643857690,0.06,203.43,203.41,5.6361696]
[1756643858102,0.06,203.43,203.42,0.72]
[1756643859407,0.06,203.43,203.39,0.72000001]
[1756643859571,0.72,203.43,203.39,1e-08]
[1756643859770,0.06,203.43,203.4,0.72]
[1756643859966,0.06,203.43,203.41,0.72]
[1756643860495,0.06,203.43,203.42,0.72]
[1756643866401,0.06,203.45,203.42,19.23153147]
[1756643866705,0.06,203.52,203.44,13.59559401]
[1756643867294,0.06,203.52,203.46,13.59559401]
[1756643867495,0.06,203.52,203.47,38.54]
[1756643868003,0.06,203.52,203.48,0.72]
[1756643868376,0.06,203.52,203.49,19.6820224]
[1756643868582,0.06,203.52,203.5,14.31559401]
[1756643869091,0.06,203.52,203.51,2.688746]
[1756643869781,0.06,203.52,203.51,7.60250945]
[1756643871124,0.06,203.52,203.51,1.968746]
[1756643871292,0.06,203.52,203.51,40.508746]
[1756643872002,0.06,203.52,203.51,1.968746]
[1756643872314,0.06,203.52,203.5,38.54]
[1756643872612,0.06,203.52,203.5,5.692798]
[1756643872808,0.06,203.52,203.5,44.232798]
[1756643873417,0.06,203.52,203.5,43.512798]
[1756643873418,0.72,203.52,203.5,43.512798]
[1756643873915,0.06,203.52,203.5,43.512798]
[1756643874224,0.06,203.52,203.51,0.72]
[1756643874607,0.06,203.52,203.5,44.232798]
[1756643874789,0.06,203.52,203.51,0.72]
[1756643876511,0.06,203.52,203.51,5.63376345]
[1756643876889,0.00937931,203.52,203.51,5.63376345]
[1756643877212,0.00937931,203.52,203.51,19.22935746]
[1756643877619,0.00937931,203.52,203.51,21.19800746]
[1756643880124,0.00937931,203.52,203.51,7.60241345]
[1756643880324,0.00937931,203.52,203.51,46.12241345]
[1756643880524,0.00937931,203.52,203.51,2.68865]
[1756643880735,0.00937931,203.52,203.51,41.20865]
[1756643881026,0.00937931,203.52,203.51,40.48865]
[1756643881517,0.00937931,203.52,203.51,2.68865]
[1756643881723,0.67937931,203.52,203.51,38.52]
[1756643882524,0.67937931,203.52,203.48,4.913101]
[1756643882707,0.67937931,203.52,203.5,38.52]
[1756643883426,0.00937931,203.52,203.5,38.52]
[1756643884238,0.00937931,203.52,203.5,44.09400084]
[1756643884401,0.00937931,203.52,203.51,0.66]
[1756643884924,0.00937931,203.52,203.51,14.25559401]
[1756643885309,0.00937931,203.52,203.51,16.22424301]
[1756643886131,0.00937931,203.52,203.51,21.13800646]
[1756643886606,0.00937931,203.52,203.51,21.16800646]
[1756643887019,0.06,203.53,203.51,21.16800646]
[1756643887206,0.06,203.53,203.52,0.66]
[1756643887620,0.06,203.53,203.52,5.57352201]
[1756643887827,0.06,203.53,203.52,43.43352201]
[1756643888011,0.06,203.53,203.52,58.19839201]
[1756643888215,0.06,203.53,203.51,0.03]
[1756643888525,0.06,203.53,203.52,38.52]
[1756643889333,0.73,203.53,203.52,38.52]
[1756643889903,0.73,203.53,203.51,38.55]
[1756643890113,0.67,203.52,203.51,38.55]
[1756643890939,26.67,203.52,203.51,0.03]
[1756643891107,0.67,203.52,203.51,0.03]
[1756643891530,5.58352201,203.52,203.51,0.03]
[1756643894333,31.58352201,203.52,203.51,0.03]
[1756643894526,5.58352201,203.52,203.51,0.03]
[1756643897409,31.58352201,203.52,203.51,0.03]
[1756643897636,5.58352201,203.52,203.51,0.03]
[1756643897926,31.58352201,203.52,203.51,0.03]
[1756643898243,26.0,203.4,203.36,0.03]
[1756643898614,26.67,203.4,203.36,0.03]
[1756643898809,40.26559401,203.4,203.36,0.03]
[1756643899011,42.23666801,203.4,203.36,0.03]
[1756643899213,33.55749484,203.4,203.36,0.03]
[1756643901139,0.67,203.43,203.37,0.66]
[1756643901630,26.67,203.43,203.37,0.66]
[1756643902250,26.67,203.43,203.36,0.03]
[1756643902251,39.27,203.46,203.4,0.66]
[1756643902541,44.18512076,203.46,203.4,0.66]
[1756643902742,26.0,203.43,203.36,4.94738767]
[1756643902955,26.0,203.43,203.37,0.66]
[1756643903121,26.67,203.43,203.37,5.57714411]
[1756643903559,26.0,203.43,203.37,4.91714411]
[1756643903727,26.0,203.43,203.4,0.66]
[1756643904242,26.0,203.41,203.38,0.66]
[1756643905644,26.67,203.43,203.37,4.91711536]
[1756643905827,26.0,203.43,203.39,0.66000001]
[1756643906033,0.67,203.43,203.4,0.03]
[1756643906243,26.67,203.43,203.4,0.03]
[1756643907053,26.0,203.42,203.4,0.03]
[1756643909152,30.91551569,203.44,203.4,0.03]
[1756643909355,0.67,203.41,203.4,0.03]
[1756643909742,5.58575143,203.43,203.4,0.03]
[1756643909942,0.67,203.42,203.4,0.03]
[1756643910157,0.67,203.43,203.4,0.03]
[1756643910353,0.67,203.42,203.4,0.03]
[1756643911554,30.91545906,203.44,203.4,0.03]
[1756643911555,31.58545906,203.44,203.4,0.03]
[1756643911754,0.67,203.43,203.4,0.03]
[1756643912761,30.91545906,203.44,203.4,0.03]
[1756643912762,0.67,203.42,203.4,0.03]
[1756643913840,31.58545906,203.44,203.4,0.03]
[1756643914155,0.67,203.43,203.4,0.03]
[1756643915689,30.91545906,203.44,203.4,0.03]
[1756643915866,0.67,203.42,203.4,0.03]
[1756643917090,0.67,203.41,203.4,0.03]
[1756643917663,0.67,203.43,203.4,0.03]
[1756643918188,52.13559401,203.42,203.4,0.03]
[1756643918485,4.91617914,203.41,203.4,0.03]
[1756643918661,5.58617914,203.41,203.4,0.03]
[1756643920978,0.67,203.41,203.4,0.03]
[1756643921586,5.58617914,203.41,203.4,0.03]
[1756643928206,13.59559401,203.4,203.39,1e-08]
[1756643928378,39.59559401,203.37,203.36,0.03]
[1756643928694,78.13559401,203.37,203.36,0.03]
[1756643928999,78.80559401,203.37,203.36,0.03]
[1756643929783,78.80559401,203.37,203.35,0.03]
[1756643930398,18.51298189,203.36,203.35,0.03]
[1756643931001,19.18298189,203.36,203.35,0.03]
[1756643933002,26.0,203.32,203.23,0.03]
[1756643933205,26.0,203.28,203.26,0.75]
[1756643933399,26.0,203.27,203.26,0.75]
[1756643933601,26.0,203.27,203.26,0.03]
[1756643934195,26.0,203.27,203.26,0.75]
[1756643934917,5.58956511,203.27,203.26,0.03]
[1756643935898,4.91956511,203.27,203.26,0.03]
[1756643936298,5.58956511,203.27,203.26,0.03]
[1756643938118,30.07536407,203.27,203.26,0.03]
[1756643947512,29.40536407,203.27,203.26,0.03]
[1756643948904,29.40536407,203.27,203.26,0.72]
[1756643949316,24.48579896,203.27,203.26,0.72]
[1756643949821,50.48579896,203.27,203.26,0.72]
[1756643958864,24.48579896,203.27,203.26,5.63980714]
[1756643959625,24.48579896,203.27,203.26,0.72]
[1756643960265,24.48579896,203.27,203.26,5.63980714]
[1756643961261,24.48579896,203.27,203.26,0.72]
[1756643961565,24.48579896,203.27,203.26,0.03]
[1756643962556,24.48579896,203.27,203.26,0.72]
[1756643963964,24.48579896,203.27,203.26,5.63980714]
[1756643974276,20.7909034,203.27,203.26,5.63980714]
[1756643983096,20.7909034,203.27,203.26,4.94980714]
[1756643985088,20.7909034,203.27,203.26,0.03]
[1756643985683,0.75,203.34,203.26,14.31559401]
[1756643985991,0.69,203.33,203.27,14.28559401]
[1756643986198,0.69,203.33,203.28,0.69]
[1756643986412,0.69,203.33,203.29,0.69]
[1756643986690,0.06,203.34,203.3,0.69]
[1756643986880,0.75,203.34,203.3,0.69]
[1756643987079,0.75,203.34,203.31,4.91859721]
[1756643987284,26.75,203.34,203.31,4.91859721]
[1756643987792,26.06,203.34,203.31,4.91859721]
[1756643987977,26.75,203.34,203.31,4.91859721]
[1756643988898,0.69,203.33,203.31,4.91859721]
[1756643989475,26.06,203.34,203.31,4.91859721]
[1756643989770,26.75,203.34,203.31,4.91859721]
[1756643990516,23.83761158,203.37,203.32,14.28559401]
[1756643990711,20.14416681,203.37,203.33,0.69]
[1756643990915,20.14416681,203.37,203.35,4.9176297]
[1756643991098,20.14416681,203.37,203.35,5.6076297]
[1756643991421,20.14416681,203.37,203.36,0.69]
[1756643992303,20.14416681,203.37,203.36,15.467233]
[1756643992932,20.14416681,203.37,203.36,20.38462088]
[1756643996827,20.14416681,203.37,203.36,58.19462088]
[1756643997128,0.06,203.37,203.36,58.19462088]
[1756643998503,0.06,203.37,203.36,58.88462088]
[1756644000326,0.06,203.37,203.36,58.19462088]
[1756644000527,0.75,203.37,203.36,14.777233]
[1756644000727,0.75,203.37,203.31,38.29649304]
[1756644000728,0.75,203.37,203.34,38.48]
[1756644000915,0.06,203.37,203.34,38.48]
[1756644001302,0.06,203.37,203.35,0.69]
[1756644001503,0.06,203.37,203.35,15.467961]
[1756644001700,0.06,203.37,203.36,0.68]
[1756644002312,0.06,203.37,203.36,7.56778188]
[1756644003536,0.06,203.37,203.36,6.88778188]
[1756644004527,0.06,203.37,203.36,1.970394]
[1756644004528,0.71,203.37,203.36,1.970394]
[1756644004740,0.71,203.37,203.3,13.59559401]
[1756644004939,0.06,203.37,203.31,38.48]
[1756644005230,0.65,203.36,203.31,38.48]
[1756644005435,0.65,203.35,203.31,38.48]
[1756644006031,0.65,203.35,203.31,41.130686]
[1756644006831,0.65,203.34,203.32,43.3983553]
[1756644007031,0.65,203.34,203.32,38.48]
[1756644007208,0.65,203.33,203.32,38.48]
[1756644007723,0.65,203.33,203.3,1.97088]
[1756644007922,0.65,203.33,203.31,38.48]
[1756644008635,0.65,203.33,203.32,38.48]
[1756644009713,26.0,203.3,203.28,13.625594]
[1756644010034,26.0,203.33,203.26,0.71]
[1756644010208,26.0,203.32,203.26,5.6297489]
[1756644010413,0.65,203.3,203.26,5.6297489]
[1756644011341,26.65,203.32,203.27,5.62952203]
[1756644011639,0.65,203.31,203.27,5.62952203]
[1756644011933,26.65,203.31,203.28,38.48]
[1756644012537,26.0,203.31,203.28,38.48]
[1756644012838,26.65,203.31,203.28,38.48]
[1756644013237,26.0,203.31,203.28,38.48]
[1756644013417,0.65,203.3,203.28,38.48]
[1756644013620,13.625594,203.35,203.28,52.07559401]
[1756644013927,0.06,203.37,203.31,13.59559401]
[1756644014106,0.06,203.37,203.33,13.59559401]
[1756644014511,0.00682646,203.37,203.34,0.68]
[1756644014738,0.00682646,203.37,203.34,2.650297]
[1756644015206,0.00682646,203.37,203.36,13.59559401]
[1756644015407,0.06,203.41,203.36,52.07559401]
[1756644015635,0.06,203.41,203.38,13.59559401]
[1756644016114,0.06,203.41,203.38,0.68]
[1756644016315,0.06,203.4,203.38,0.68]
[1756644016545,0.06,203.4,203.38,33.96682032]
[1756644021728,1e-08,203.39,203.38,32.80851075]
[1756644022642,1e-08,203.39,203.38,193.26851075]
[1756644022834,1e-08,203.39,203.38,192.77682032]
[1756644023850,1e-08,203.4,203.39,13.59559401]
[1756644024042,1e-08,203.4,203.39,14.76726026]
[1756644024548,0.71,203.46,203.39,55.19678226]
[1756644024730,0.71,203.46,203.41,13.59559401]
[1756644025046,0.06,203.46,203.42,38.46]
[1756644025221,0.65,203.45,203.42,38.46]
[1756644025425,0.65,203.45,203.42,53.231412]
[1756644025856,0.65,203.45,203.43,4.91569581]
[1756644026054,0.65,203.45,203.44,38.46]
[1756644026559,0.65,203.45,203.44,40.429522]
[1756644026730,0.65,203.45,203.44,1.969522]
[1756644026931,0.06,203.46,203.44,40.429522]
[1756644027854,0.71,203.46,203.45,4.91521258]
[1756644028154,0.06,203.46,203.45,4.91521258]
[1756644028352,0.06,203.46,203.45,19.19080659]
[1756644028557,0.06,203.46,203.45,56.97080659]
[1756644029956,0.06,203.46,203.45,43.37521258]
[1756644031061,0.06,203.46,203.45,4.91521258]
[1756644031260,0.06,203.46,203.45,43.35521258]
[1756644031456,0.06,203.46,203.44,6.88497263]
[1756644031457,0.71,203.46,203.44,6.88497263]
[1756644031647,0.06,203.46,203.45,38.44]
[1756644032125,0.78,203.46,203.45,38.44]
[1756644033239,0.78,203.46,203.45,43.35521258]
[1756644034653,0.09209043,203.46,203.45,43.35521258]
[1756644036360,0.09209043,203.46,203.45,4.91521258]
[1756644036557,0.09209043,203.46,203.45,43.35521258]
[1756644036861,0.06,203.46,203.45,43.35521258]
[1756644037942,0.06,203.46,203.44,6.8849489]
[1756644038159,0.72,203.45,203.44,1.969522]
[1756644038470,0.72,203.45,203.44,40.409522]
[1756644038656,0.06,203.46,203.44,40.409522]
[1756644038865,0.78,203.46,203.44,6.88491375]
[1756644039058,0.06,203.46,203.45,38.44]
[1756644039372,0.06,203.46,203.42,4.914085]
[1756644039671,0.72,203.45,203.43,38.44]
[1756644039843,0.72,203.45,203.39,0.72]
[1756644039844,0.06,203.46,203.44,38.44]
[1756644040446,0.78,203.46,203.44,38.44]
[1756644040668,0.72,203.45,203.44,38.44]
[1756644042382,0.72,203.45,203.41,1.969715]
[1756644042549,0.72,203.44,203.42,38.44]
[1756644042748,0.72,203.43,203.42,38.44]
[1756644045676,26.06,203.46,203.42,38.44]
[1756644045969,0.72,203.45,203.42,38.44]
[1756644046357,0.72,203.44,203.42,38.44]
[1756644047482,0.06,203.46,203.43,0.72]
[1756644047652,0.06,203.46,203.44,38.44]
[1756644047859,0.78,203.46,203.44,38.44]
[1756644048166,0.72,203.45,203.4,0.72]
[1756644048358,0.72,203.45,203.41,38.44]
[1756644048984,0.72,203.45,203.41,39.16]
[1756644049568,0.72,203.45,203.41,5.63616579]
[1756644049773,0.72,203.44,203.42,38.44]
[1756644049956,4.9750647,203.46,203.42,38.44]
[1756644050283,0.72,203.43,203.42,38.44]
[1756644050877,0.72,203.43,203.38,10.55142005]
[1756644051081,0.72,203.43,203.39,39.16]
[1756644052176,0.72,203.43,203.39,44.07643674]
[1756644052377,4.9749765,203.46,203.39,43.35643674]
[1756644052583,0.78,203.46,203.4,0.72]
[1756644053489,5.69500375,203.46,203.4,0.72]
[1756644054296,5.69500375,203.46,203.39,38.44]
[1756644054482,4.97500375,203.46,203.39,38.44]
[1756644054683,0.72,203.45,203.39,39.16]
[1756644054884,0.72,203.44,203.39,39.16]
[1756644055090,4.97500375,203.46,203.39,39.16]
[1756644055274,0.72,203.43,203.4,38.44]
[1756644055777,0.72,203.43,203.4,38.47]
[1756644057199,4.97500375,203.46,203.4,38.47]
[1756644057500,4.97500375,203.46,203.4,39.19]
[1756644057799,0.06,203.46,203.4,39.19]
[1756644058395,0.06,203.46,203.4,38.47]
[1756644059180,0.78,203.46,203.4,38.47]
[1756644059494,0.78,203.46,203.4,39.19]
[1756644059992,4.91521258,203.45,203.4,39.19]
[1756644060192,5.63521258,203.45,203.41,0.72]
[1756644060384,0.72,203.45,203.41,0.72]
[1756644060695,4.97499199,203.46,203.4,38.47]
[1756644060995,4.97499199,203.46,203.42,0.72]
[1756644061190,5.69499199,203.46,203.42,0.72]
[1756644062098,0.67,203.45,203.4,39.18]
[1756644062271,0.06,203.46,203.41,0.71]
[1756644062475,0.73,203.46,203.41,0.71]
[1756644063399,0.06,203.46,203.4,43.38635336]
[1756644063602,0.06,203.46,203.42,0.71]
[1756644063783,0.73,203.46,203.43,38.42]
[1756644063988,0.06,203.46,203.43,39.13]
[1756644064282,0.06,203.46,203.41,0.71]
[1756644064485,0.73,203.46,203.42,38.42]
[1756644064788,0.06,203.46,203.42,38.42]
[1756644064982,0.06,203.46,203.43,0.71]
[1756644066191,0.06,203.46,203.44,0.71]
[1756644067834,0.00954623,203.46,203.44,0.71]
[1756644068115,5.64425409,203.49,203.44,38.42]
[1756644068323,0.67,203.48,203.42,0.71]
[1756644068494,26.0,203.46,203.42,0.71]
[1756644068685,26.0,203.46,203.43,0.71]
[1756644069896,4.91487197,203.47,203.43,0.71]
[1756644070110,0.67,203.46,203.4,38.45]
[1756644070313,0.67,203.46,203.41,0.71]
[1756644070524,26.0,203.41,203.4,0.03]
[1756644070721,13.59559401,203.44,203.4,0.03]
[1756644070722,26.0,203.44,203.4,0.03]
[1756644070940,0.67,203.43,203.4,0.03]
[1756644071533,0.67,203.42,203.4,0.03]
[1756644071910,26.67,203.44,203.4,0.03]
[1756644072230,26.0,203.41,203.4,0.03]
[1756644073718,4.91617914,203.41,203.4,0.03]
[1756644073916,5.58617914,203.41,203.4,0.03]
[1756644076799,19.18177315,203.41,203.4,0.03]
[1756644077004,61.00229787,203.41,203.4,0.03]
[1756644077399,62.97327487,203.41,203.4,0.03]
[1756644077621,13.59559401,203.4,203.39,0.03]
[1756644077827,16.89611873,203.4,203.39,0.03]
[1756644078036,17.56611873,203.4,203.39,0.03]
[1756644078424,19.53729073,203.4,203.39,0.03]
[1756644078725,39.59559401,203.38,203.37,0.03]
[1756644079031,30.91690431,203.38,203.37,0.03]
[1756644079326,4.91690431,203.38,203.37,0.03]
[1756644080927,30.91690431,203.38,203.37,0.03]
[1756644081650,31.58690431,203.38,203.37,0.03]
[1756644081946,30.91690431,203.38,203.37,0.03]
[1756644082537,31.58690431,203.38,203.37,0.03]
[1756644084245,47.15367032,203.38,203.37,0.03]
[1756644086246,85.71367032,203.38,203.37,0.03]
[1756644086445,47.15367032,203.38,203.37,0.03]
[1756644086649,85.71367032,203.38,203.37,0.03]
[1756644086953,47.15367032,203.38,203.37,0.03]
[1756644087133,26.0,203.39,203.37,0.74]
[1756644087339,4.91642084,203.4,203.37,0.03]
[1756644087650,4.91642084,203.4,203.38,0.71]
[1756644087946,4.91616002,203.42,203.37,0.03]
[1756644088148,43.53616002,203.42,203.37,0.03]
[1756644088355,69.53616002,203.42,203.37,0.03]
[1756644088656,4.91616002,203.42,203.38,0.71]
[1756644089026,26.0,203.4,203.38,0.71]
[1756644089939,26.0,203.41,203.38,0.71]
[1756644091262,26.0,203.41,203.37,0.03]
[1756644091434,26.0,203.41,203.38,0.71]
[1756644091634,26.0,203.41,203.39,0.67]
[1756644091835,26.06,203.41,203.4,0.67]
[1756644092034,0.06,203.41,203.4,0.67]
[1756644096864,0.06,203.41,203.4,5.58642084]
[1756644098266,0.06,203.41,203.4,0.67]
[1756644098849,0.06,203.41,203.4,5.58642084]
[1756644104654,0.01089812,203.41,203.4,5.58642084]
[1756644110270,0.01089812,203.41,203.4,5.61642084]
[1756644114574,0.06,203.44,203.4,5.61642084]
[1756644114892,0.06,203.44,203.42,4.91593746]
[1756644115273,0.06,203.44,203.42,5.58593746]
[1756644116090,0.06,203.44,203.43,0.67]
[1756644117286,0.06,203.44,203.43,4.91569581]
[1756644117489,0.06,203.44,203.43,43.35569581]
[1756644117674,0.06,203.44,203.43,44.02569581]
[1756644120979,0.06,203.44,203.43,57.62128982]
[1756644121384,0.06,203.44,203.43,59.59061782]
[1756644121781,1e-08,203.44,203.43,59.59061782]
[1756644121978,0.06,203.46,203.45,39.59559401]
[1756644122383,0.06,203.46,203.45,40.27559401]
[1756644122585,0.06,203.46,203.45,42.24482501]
[1756644124094,0.06,203.46,203.45,47.16003759]
[1756644124305,0.06,203.46,203.45,85.60003759]
[1756644124682,0.00972322,203.46,203.45,85.60003759]
[1756644126309,0.00972322,203.46,203.45,207.58003759]
[1756644128633,0.00972322,203.46,203.45,4.91521258]
[1756644128811,0.00972322,203.46,203.45,43.33521258]
[1756644133391,0.00972322,203.46,203.45,38.42]
[1756644133596,0.00972322,203.46,203.4,0.03]
[1756644133796,0.67972322,203.46,203.41,43.33617914]
[1756644134102,0.67,203.45,203.41,43.33617914]
[1756644134298,0.67,203.44,203.41,43.33617914]
[1756644135227,0.67,203.44,203.41,38.42]
[1756644135521,0.67,203.44,203.41,43.33616861]
[1756644136022,0.67972322,203.46,203.41,43.33616861]
[1756644136323,0.00972322,203.46,203.42,0.68]
[1756644136498,0.00972322,203.46,203.43,39.1]
[1756644136691,0.00972322,203.46,203.43,43.335607]
[1756644136992,0.67972322,203.46,203.43,43.335607]
[1756644138511,0.06,203.49,203.44,0.68]
[1756644138699,0.73,203.49,203.45,38.42]
[1756644139596,0.67,203.48,203.45,38.42]
[1756644139917,0.06,203.49,203.45,43.33507775]
[1756644140113,0.06,203.49,203.46,0.68]
[1756644140431,0.06,203.49,203.47,38.42]
[1756644141428,0.73,203.49,203.47,38.42]
[1756644142002,0.06,203.49,203.4,0.03]
[1756644142234,0.06,203.49,203.41,38.42]
[1756644142235,0.67,203.48,203.41,38.42]
[1756644142404,0.67,203.48,203.41,39.1]
[1756644142610,0.67,203.48,203.42,0.68]
[1756644142909,0.67,203.48,203.43,38.42]
[1756644143117,0.06,203.49,203.43,39.1]
[1756644143328,0.73,203.49,203.43,39.1]
[1756644143927,0.73,203.49,203.43,44.01548259]
[1756644145335,0.67,203.48,203.43,44.01548259]
[1756644145712,0.67,203.48,203.44,0.68]
[1756644145918,0.06,203.49,203.43,38.42]
[1756644146135,0.67,203.47,203.43,38.42]
[1756644146313,0.67,203.48,203.43,44.01566105]
[1756644146516,0.67,203.47,203.43,44.01566105]
[1756644147921,0.73,203.49,203.44,0.68]
[1756644148519,0.67,203.48,203.44,0.68]
[1756644148840,0.06,203.49,203.44,0.68]
[1756644149017,0.73,203.49,203.44,0.68]
[1756644149218,0.67,203.48,203.44,0.68]
[1756644151328,0.67,203.48,203.43,38.42]
[1756644151530,0.67,203.48,203.43,39.1]
[1756644152322,5.58451402,203.48,203.43,39.1]
[1756644152727,4.91451402,203.48,203.43,38.42]
[1756644153040,0.66,203.47,203.41,38.42]
[1756644153216,5.57498274,203.46,203.41,38.42]